fUST/lending_fUST_20250408
["ID","MTS","AMOUNT","RATE_DAILY","PERIOD"]
[357394908,1744041972232,3525.0,0.00025,120]
[357394937,1744042181365,200.0,0.00022,10]
[357394969,1744042232113,-489.66947312,0.00017898,2]
[357394971,1744042232122,-217.69355369,0.000199,2]
[357394973,1744042232134,-151.0,0.00019988,2]
[357394975,1744042232143,-151.0,0.00019988,2]
[357394977,1744042232152,-151.0,0.00019988,2]
[357394979,1744042232162,-151.0,0.00019988,2]
[357394981,1744042232172,-283.92601005,0.00019988,2]
[357394983,1744042232181,-500.0,0.00019999,2]
[357394985,1744042232191,-500.0,0.00019999,2]
[357394987,1744042232201,-500.0,0.00019999,2]
[357394989,1744042232211,-500.0,0.00019999,2]
[357394991,1744042232220,-602.7763855,0.00019999,2]
[357394993,1744042232230,-500.0,0.00019999,2]
[357394995,1744042232239,-500.0,0.00019999,2]
[357394997,1744042232249,-500.0,0.00019999,2]
[357394999,1744042232259,-624.40745734,0.00019999,2]
[357395001,1744042232269,-500.0,0.00019999,2]
[357395003,1744042232279,-171.87925816,0.00019999,2]
[357395006,1744042232289,-500.0,0.0002,2]
[357395009,1744042232298,-639.64395399,0.0002,2]
[357395011,1744042232308,-500.0,0.0002,2]
[357395014,1744042232318,-500.0,0.0002,2]
[357395017,1744042232328,-500.0,0.0002,2]
[357395020,1744042232338,-500.0,0.0002,2]
[357395022,1744042232347,-50000.0,0.0002,2]
[357395025,1744042232357,-160.0,0.0002,3]
[357395028,1744042232367,-160.0,0.0002,3]
[357395031,1744042232377,-500.0,0.0002,2]
[357395033,1744042232388,-500.0,0.0002,2]
[357395036,1744042232399,-502.38353203,0.0002,2]
[357395039,1744042232409,-407.13155237,0.0002,2]
[357395041,1744042232419,-500.0,0.0002,2]
[357395043,1744042232430,-270.03880663,0.0002,2]
[357395045,1744042232441,-500.0,0.0002,2]
[357395047,1744042232451,-152.73582503,0.0002,2]
[357395050,1744042232462,-503.09758704,0.0002,2]
[357395053,1744042232471,-500.0,0.0002,2]
[357395056,1744042232481,-500.0,0.0002,2]
[357395059,1744042232491,-500.0,0.0002,2]
[357395062,1744042232501,-500.0,0.0002,2]
[357395065,1744042232510,-500.0,0.0002,2]
[357395068,1744042232520,-327.52066194,0.0002,2]
[357395070,1744042232529,-500.0,0.0002,2]
[357395073,1744042232539,-500.0,0.0002,2]
[357395077,1744042232549,-500.46992747,0.0002,2]
[357395080,1744042232559,-501.58407249,0.0002,2]
[357395082,1744042232568,-500.0,0.0002,2]
[357395085,1744042232577,-500.0,0.0002,2]
[357395088,1744042232587,-500.0,0.0002,2]
[357395090,1744042232596,-500.0,0.0002,2]
[357395091,1744042232606,-500.0,0.0002,2]
[357395093,1744042232615,-1801.470459,0.00021737,2]
[357395095,1744042232625,-19549.59773113,0.00022126,2]
[357395098,1744042232638,-5350.40226887,0.00022126,2]
[357395100,1744042232649,-347.2353133,0.00022173,2]
[357395102,1744042232659,-635.7018944,0.00023161,2]
[357395104,1744042232669,-297.33672579,0.000232,2]
[357395105,1744042232678,-217.69355368,0.00023368,2]
[357395106,1744042232688,-410.8,0.0002418,3]
[357395107,1744042232698,-34.2002828,0.0002418,3]
[357395137,1744042238114,-376.5997172,0.0002418,3]
[357395139,1744042238124,-1643.2,0.0002419,3]
[357395141,1744042238134,-821.6,0.0002419,3]
[357395143,1744042238146,-289.99405592,0.000242,5]
[357395158,1744042238277,-4193.73675192,0.000242,5]
[357395160,1744042238287,-4483.73080783,0.000242,5]
[357395162,1744042238297,-4483.73080783,0.000242,5]
[357395164,1744042238307,-4483.73080783,0.000242,5]
[357395167,1744042238316,-345.585175,0.00024412,2]
[357395169,1744042238326,-28417.5026443,0.00024642,2]
[357395171,1744042238336,-500.0,0.00024658,2]
[357395173,1744042238346,-500.0,0.00024658,2]
[357395175,1744042238355,-500.0,0.00024658,2]
[357395177,1744042238365,-500.0,0.00024658,2]
[357395179,1744042238375,-500.0,0.00024658,2]
[357395181,1744042238385,-540.54932053,0.00024658,2]
[357395183,1744042238396,-4483.73080783,0.00024728,5]
[357395185,1744042238406,-1592.72016335,0.000248,2]
[357395187,1744042238416,-11251.7065113,0.000249,2]
[357395189,1744042238426,-1592.72016335,0.00025469,2]
[357395191,1744042238435,-1000.0,0.00025479,2]
[357395193,1744042238444,-1000.0,0.00025479,2]
[357395195,1744042238454,-1000.0,0.00025479,2]
[357395197,1744042238464,-1000.0,0.00025479,2]
[357395199,1744042238474,-3985.7,0.00025479,2]
[357395201,1744042238484,-1000.0,0.00025479,2]
[357395203,1744042238494,-1000.0,0.00025479,2]
[357395205,1744042238503,-1000.0,0.00025479,2]
[357395208,1744042238514,-1003.59398376,0.00025479,2]
[357395209,1744042238524,-1000.0,0.00025479,2]
[357395210,1744042238533,-1000.0,0.00025479,2]
[357395211,1744042238543,-501.06259466,0.00025479,2]
[357395212,1744042238553,-210.43057469,0.00025479,2]
[357395213,1744042238563,-1000.0,0.00025479,2]
[357395214,1744042238573,-1000.0,0.00025479,2]
[357395215,1744042238582,-1000.0,0.00025479,2]
[357395216,1744042238592,-1000.0,0.00025479,2]
[357395217,1744042238602,-1000.0,0.00025479,2]
[357395218,1744042238611,-1000.0,0.00025479,2]
[357395219,1744042238621,-1000.0,0.00025479,2]
[357395220,1744042238630,-821.6,0.0002555,3]
[357395221,1744042238642,-821.6,0.0002555,3]
[357395222,1744042238653,-500.0,0.00025559,2]
[357395223,1744042238662,-369.34331653,0.00025559,2]
[357395224,1744042238673,-3286.4,0.0002556,3]
[357395225,1744042238683,-1643.2,0.0002556,3]
[357395226,1744042238692,-181.5005309,0.0002591,2]
[357395227,1744042238702,-4483.73080783,0.00025934,6]
[357395228,1744042238712,-217.69355368,0.00026835,2]
[357395229,1744042238721,-11251.7065113,0.00026925,2]
[357395230,1744042238731,-1430.66529918,0.0002699,2]
[357395231,1744042238741,-544.0,0.00027,2]
[357395232,1744042238751,-4483.73080783,0.00027141,7]
[357395233,1744042238761,-885.94533587,0.00027297,2]
[357395234,1744042238771,-885.94533584,0.00027366,2]
[357395235,1744042238781,-151.0,0.00027371,2]
[357395236,1744042238791,-200.0,0.00027371,2]
[357395237,1744042238800,-500.0,0.00027373,2]
[357395238,1744042238810,-500.0,0.00027373,2]
[357395239,1744042238820,-500.0,0.00027373,2]
[357395240,1744042238830,-6370.8806534,0.00027377,2]
[357395241,1744042238840,-1480.61827113,0.00027385,2]
[357395242,1744042238850,-180027.30418,0.00027387,2]
[357395243,1744042238860,-22298.0822869,0.00027387,2]
[357395244,1744042238869,-1000.0,0.00027396,2]
[357395245,1744042238880,-1000.0,0.00027396,2]
[357395246,1744042238891,-500.0,0.00027397,7]
[357395247,1744042238903,-500.0,0.00027397,7]
[357395248,1744042238920,-500.0,0.00027397,7]
[357395249,1744042238931,-500.0,0.00027397,7]
[357395250,1744042238942,-270.88368582,0.00027397,7]
[357395251,1744042238953,-500.0,0.00027397,7]
[357395252,1744042238963,-500.0,0.00027397,7]
[357395253,1744042238973,-557.59507408,0.00027397,2]
[357395254,1744042238983,-500.0,0.00027397,7]
[357395255,1744042238994,-500.0,0.00027397,7]
[357395256,1744042239004,-500.0,0.00027397,7]
[357395257,1744042239014,-500.0,0.00027397,7]
[357395258,1744042239023,-500.0,0.00027397,7]
[357395259,1744042239033,-500.0,0.00027397,7]
[357395260,1744042239042,-500.0,0.00027397,7]
[357395261,1744042239052,-500.0,0.00027397,7]
[357395262,1744042239062,-500.0,0.00027397,7]
[357395263,1744042239072,-500.96210235,0.00027397,7]
[357395264,1744042239082,-500.0,0.00027397,7]
[357395265,1744042239092,-500.0,0.00027397,7]
[357395266,1744042239102,-500.0,0.00027397,7]
[357395268,1744042239111,-500.0,0.00027397,7]
[357395269,1744042239121,-500.0,0.00027397,7]
[357395270,1744042239131,-783.73948285,0.00027397,7]
[357395271,1744042239142,-500.0,0.00027397,7]
[357395272,1744042239152,-500.0,0.00027397,7]
[357395273,1744042239162,-500.0,0.00027397,7]
[357395274,1744042239172,-532.66529184,0.00027397,7]
[357395275,1744042239183,-500.0,0.00027397,7]
[357395276,1744042239193,-500.0,0.00027397,7]
[357395277,1744042239203,-500.0,0.00027397,7]
[357395278,1744042239214,-500.0,0.00027397,7]
[357395279,1744042239224,-500.0,0.00027397,7]
[357395280,1744042239233,-500.0,0.00027397,7]
[357395281,1744042239243,-500.0,0.00027397,7]
[357395282,1744042239253,-500.0,0.00027397,7]
[357395283,1744042239263,-500.0,0.00027397,7]
[357395284,1744042239273,-500.0,0.00027397,7]
[357395285,1744042239283,-500.0,0.00027397,7]
[357395286,1744042239292,-500.0,0.00027397,7]
[357395287,1744042239302,-500.0,0.00027397,7]
[357395288,1744042239313,-500.25746751,0.00027397,7]
[357395289,1744042239323,-500.0,0.00027397,7]
[357395290,1744042239332,-500.0,0.00027397,7]
[357395291,1744042239342,-500.0,0.00027397,7]
[357395292,1744042239352,-500.0,0.00027397,7]
[357395293,1744042239362,-500.0,0.00027397,7]
[357395294,1744042239371,-500.0,0.00027397,7]
[357395295,1744042239381,-500.0,0.00027397,7]
[357395296,1744042239390,-500.0,0.00027397,7]
[357395297,1744042239399,-500.0,0.00027397,7]
[357395298,1744042239409,-500.0,0.00027397,7]
[357395299,1744042239419,-500.0,0.00027397,7]
[357395300,1744042239428,-500.0,0.00027397,7]
[357395301,1744042239438,-500.0,0.00027397,7]
[357395302,1744042239448,-500.0,0.00027397,7]
[357395303,1744042239458,-500.0,0.00027397,7]
[357395304,1744042239468,-500.0,0.00027397,7]
[357395305,1744042239478,-500.0,0.00027397,7]
[357395306,1744042239488,-500.0,0.00027397,7]
[357395307,1744042239498,-500.0,0.00027397,7]
[357395309,1744042239507,-500.0,0.00027397,7]
[357395310,1744042239517,-502.09,0.00027397,7]
[357395312,1744042239527,-500.0,0.00027397,7]
[357395313,1744042239536,-630.97083906,0.00027397,7]
[357395315,1744042239546,-500.0,0.00027397,7]
[357395316,1744042239555,-544.23951403,0.00027397,7]
[357395317,1744042239564,-500.0,0.00027397,7]
[357395318,1744042239574,-622.48,0.00027397,7]
[357395319,1744042239584,-500.0,0.00027397,7]
[357395320,1744042239593,-530.39105613,0.00027397,7]
[357395321,1744042239603,-707.78,0.00027397,7]
[357395322,1744042239612,-500.0,0.00027397,7]
[357395323,1744042239622,-500.0,0.00027397,7]
[357395324,1744042239632,-500.0,0.00027397,7]
[357395325,1744042239644,-500.0,0.00027397,7]
[357395326,1744042239655,-500.0,0.00027397,7]
[357395327,1744042239664,-519.73,0.00027397,7]
[357395328,1744042239675,-1250.53,0.00027397,7]
[357395329,1744042239686,-500.0,0.00027397,2]
[357395330,1744042239696,-500.0,0.00027397,7]
[357395331,1744042239706,-500.0,0.00027397,7]
[357395332,1744042239717,-687.95,0.00027397,7]
[357395333,1744042239727,-500.0,0.00027397,7]
[357395334,1744042239738,-500.0,0.00027397,7]
[357395335,1744042239749,-500.0,0.00027397,7]
[357395336,1744042239759,-500.0,0.00027397,7]
[357395337,1744042239770,-500.0,0.00027397,7]
[357395338,1744042239781,-500.00000001,0.00027397,7]
[357395339,1744042239791,-500.0,0.00027397,7]
[357395340,1744042239801,-502.7378276,0.00027397,7]
[357395341,1744042239811,-500.0,0.00027397,7]
[357395342,1744042239821,-500.0,0.00027397,7]
[357395343,1744042239830,-793.68,0.00027397,7]
[357395344,1744042239840,-500.0,0.00027397,7]
[357395345,1744042239850,-500.0,0.00027397,7]
[357395346,1744042239860,-500.0,0.00027397,7]
[357395347,1744042239871,-500.0,0.00027397,7]
[357395348,1744042239881,-500.0,0.00027397,7]
[357395349,1744042239897,-649.99268977,0.00027397,7]
[357395350,1744042239911,-500.0,0.00027397,7]
[357395352,1744042239920,-500.0,0.00027397,7]
[357395354,1744042239930,-540.8917376,0.00027397,7]
[357395355,1744042239940,-500.0,0.00027397,7]
[357395356,1744042239950,-500.0,0.00027397,7]
[357395357,1744042239960,-500.0,0.00027397,7]
[357395358,1744042239970,-504.98395768,0.00027397,7]
[357395359,1744042239981,-500.0,0.00027397,7]
[357395360,1744042239991,-500.0,0.00027397,7]
[357395361,1744042240001,-500.0,0.00027397,7]
[357395362,1744042240011,-1439.69,0.00027397,7]
[357395363,1744042240021,-288.36250587,0.00027397,7]
[357395364,1744042240031,-500.0,0.00027397,7]
[357395365,1744042240041,-500.0,0.00027397,7]
[357395366,1744042240051,-500.0,0.00027397,7]
[357395367,1744042240061,-500.0,0.00027397,7]
[357395368,1744042240072,-500.0,0.00027397,7]
[357395369,1744042240082,-500.0,0.00027397,7]
[357395370,1744042240091,-500.0,0.00027397,7]
[357395371,1744042240101,-500.0,0.00027397,7]
[357395372,1744042240111,-500.0,0.00027397,7]
[357395373,1744042240121,-550.12242767,0.00027397,7]
[357395374,1744042240131,-500.0,0.00027397,7]
[357395375,1744042240144,-239.21361706,0.00027397,7]
[357395376,1744042240154,-500.0,0.00027397,7]
[357395377,1744042240164,-500.0,0.00027397,7]
[357395378,1744042240174,-751.37,0.00027397,7]
[357395379,1744042240185,-500.0,0.00027397,7]
[357395380,1744042240195,-536.39,0.00027397,7]
[357395381,1744042240205,-500.0,0.00027397,7]
[357395382,1744042240215,-500.0,0.00027397,7]
[357395383,1744042240225,-1406.21,0.00027397,7]
[357395385,1744042240235,-500.0,0.00027397,7]
[357395387,1744042240245,-500.0,0.00027397,7]
[357395389,1744042240256,-500.0,0.00027397,7]
[357395391,1744042240265,-500.0,0.00027397,7]
[357395393,1744042240275,-500.0,0.00027397,7]
[357395395,1744042240285,-511.54507035,0.00027397,7]
[357395397,1744042240295,-500.0,0.00027397,7]
[357395399,1744042240305,-500.0,0.00027397,7]
[357395401,1744042240315,-500.0,0.00027397,7]
[357395403,1744042240325,-500.0,0.00027397,7]
[357395405,1744042240336,-613.11,0.00027397,7]
[357395407,1744042240346,-500.0,0.00027397,7]
[357395409,1744042240356,-500.0,0.00027397,7]
[357395411,1744042240366,-420.05650324,0.00027397,7]
[357395413,1744042240375,-1085.42,0.00027397,7]
[357395415,1744042240386,-500.0,0.00027397,7]
[357395417,1744042240398,-505.09,0.00027397,7]
[357395419,1744042240408,-500.0,0.00027397,7]
[357395421,1744042240419,-500.0,0.00027397,7]
[357395423,1744042240430,-500.0,0.00027397,7]
[357395425,1744042240439,-500.0,0.00027397,7]
[357395427,1744042240449,-500.0,0.00027397,7]
[357395429,1744042240460,-500.0,0.00027397,7]
[357395430,1744042240470,-500.0,0.00027397,7]
[357395431,1744042240480,-501.02533484,0.00027397,7]
[357395432,1744042240490,-906.45,0.00027397,7]
[357395433,1744042240500,-500.0,0.00027397,7]
[357395434,1744042240510,-500.0,0.00027397,7]
[357395435,1744042240520,-879.55,0.00027397,7]
[357395436,1744042240530,-500.0,0.00027397,7]
[357395437,1744042240540,-500.0,0.00027397,7]
[357395438,1744042240550,-500.0,0.00027397,7]
[357395439,1744042240559,-500.0,0.00027397,7]
[357395440,1744042240569,-500.0,0.00027397,7]
[357395441,1744042240579,-500.0,0.00027397,7]
[357395442,1744042240589,-582.28,0.00027397,7]
[357395443,1744042240599,-151.0,0.00027397,7]
[357395444,1744042240609,-500.0,0.00027397,7]
[357395445,1744042240619,-500.0,0.00027397,7]
[357395446,1744042240629,-500.0,0.00027397,7]
[357395448,1744042240638,-500.0,0.00027397,7]
[357395449,1744042240650,-500.0,0.00027397,7]
[357395450,1744042240660,-502.6498505,0.00027397,7]
[357395451,1744042240670,-500.0,0.00027397,7]
[357395452,1744042240679,-500.0,0.00027397,7]
[357395453,1744042240689,-500.0,0.00027397,7]
[357395454,1744042240699,-500.0,0.00027397,7]
[357395455,1744042240710,-500.0,0.00027397,7]
[357395456,1744042240719,-500.0,0.00027397,7]
[357395457,1744042240729,-500.0,0.00027397,7]
[357395458,1744042240739,-500.0,0.00027397,7]
[357395459,1744042240749,-500.0,0.00027397,7]
[357395460,1744042240759,-500.0,0.00027397,7]
[357395461,1744042240770,-500.0,0.00027397,7]
[357395462,1744042240780,-574.56,0.00027397,7]
[357395463,1744042240791,-500.0,0.00027397,7]
[357395464,1744042240802,-500.0,0.00027397,7]
[357395465,1744042240812,-500.0,0.00027397,7]
[357395466,1744042240822,-1000.0,0.00027397,7]
[357395467,1744042240832,-500.0,0.00027397,7]
[357395468,1744042240842,-361.15585091,0.00027397,7]
[357395469,1744042240852,-560.5584338,0.00027397,7]
[357395470,1744042240862,-373.9433051,0.00027397,7]
[357395471,1744042240871,-500.0,0.00027397,7]
[357395472,1744042240881,-500.0,0.00027397,7]
[357395473,1744042240894,-500.0,0.00027397,7]
[357395474,1744042240904,-770.84,0.00027397,7]
[357395475,1744042240919,-411.39765053,0.00027397,7]
[357395476,1744042240930,-500.0,0.00027397,7]
[357395477,1744042240940,-500.0,0.00027397,7]
[357395478,1744042240951,-500.0,0.00027397,7]
[357395479,1744042240961,-500.0,0.00027397,7]
[357395480,1744042240971,-500.0,0.00027397,7]
[357395481,1744042240981,-500.0,0.00027397,7]
[357395482,1744042240993,-500.0,0.00027397,7]
[357395483,1744042241003,-520.09,0.00027397,7]
[357395484,1744042241014,-500.0,0.00027397,7]
[357395485,1744042241024,-500.0,0.00027397,7]
[357395486,1744042241034,-500.0,0.00027397,7]
[357395487,1744042241044,-500.0,0.00027397,7]
[357395488,1744042241055,-500.0,0.00027397,7]
[357395489,1744042241065,-500.0,0.00027397,7]
[357395490,1744042241075,-500.0,0.00027397,7]
[357395491,1744042241085,-500.0,0.00027397,7]
[357395492,1744042241095,-500.0,0.00027397,7]
[357395493,1744042241106,-500.0,0.00027397,7]
[357395494,1744042241115,-500.0,0.00027397,7]
[357395495,1744042241125,-500.0,0.00027397,7]
[357395496,1744042241135,-535.68,0.00027397,7]
[357395497,1744042241147,-500.0,0.00027397,7]
[357395498,1744042241157,-500.0,0.00027397,7]
[357395499,1744042241167,-500.0,0.00027397,7]
[357395500,1744042241177,-530.72281071,0.00027397,7]
[357395501,1744042241187,-500.0,0.00027397,7]
[357395502,1744042241197,-500.0,0.00027397,7]
[357395503,1744042241207,-500.0,0.00027397,7]
[357395504,1744042241217,-574.65,0.00027397,7]
[357395505,1744042241227,-500.0,0.00027397,7]
[357395506,1744042241240,-500.0,0.00027397,7]
[357395507,1744042241250,-500.0,0.00027397,7]
[357395508,1744042241259,-1305.77,0.00027397,7]
[357395509,1744042241269,-151.0,0.00027397,7]
[357395510,1744042241279,-500.0,0.00027397,7]
[357395511,1744042241461,-188.95499429,0.00027397,7]
[357395512,1744042241472,-500.0,0.00027397,7]
[357395513,1744042241482,-501.56410207,0.00027397,7]
[357395514,1744042241491,-580.11,0.00027397,7]
[357395515,1744042241501,-500.0,0.00027397,7]
[357395516,1744042241511,-500.0,0.00027397,7]
[357395517,1744042241521,-500.0,0.00027397,7]
[357395518,1744042241531,-500.0,0.00027397,7]
[357395519,1744042241540,-500.0,0.00027397,7]
[357395520,1744042241550,-500.0,0.00027397,7]
[357395521,1744042241560,-500.0,0.00027397,7]
[357395522,1744042241570,-500.0,0.00027397,7]
[357395523,1744042241579,-500.0,0.00027397,7]
[357395524,1744042241588,-500.0,0.00027397,7]
[357395525,1744042241598,-500.0,0.00027397,7]
[357395526,1744042241607,-500.0,0.00027397,7]
[357395527,1744042241617,-842.49,0.00027397,7]
[357395528,1744042241626,-379.51686846,0.00027397,7]
[357395529,1744042241635,-500.0,0.00027397,7]
[357395530,1744042241646,-500.0,0.00027397,7]
[357395531,1744042241656,-500.0,0.00027397,7]
[357395532,1744042241666,-500.0,0.00027397,7]
[357395533,1744042241675,-500.0,0.00027397,7]
[357395534,1744042241685,-500.0,0.00027397,7]
[357395535,1744042241694,-1747.01,0.00027397,7]
[357395536,1744042241704,-500.0,0.00027397,7]
[357395537,1744042241714,-500.0,0.00027397,7]
[357395538,1744042241723,-500.0,0.00027397,7]
[357395539,1744042241733,-1237.08,0.00027397,7]
[357395540,1744042241743,-500.0,0.00027397,7]
[357395541,1744042241752,-631.73,0.00027397,7]
[357395542,1744042241762,-554.04,0.00027397,7]
[357395543,1744042241772,-500.0,0.00027397,7]
[357395544,1744042241781,-500.0,0.00027397,7]
[357395545,1744042241791,-500.0,0.00027397,7]
[357395546,1744042241801,-500.0,0.00027397,7]
[357395547,1744042241810,-502.0029417,0.00027397,7]
[357395548,1744042241820,-500.0,0.00027397,7]
[357395549,1744042241830,-500.0,0.00027397,7]
[357395550,1744042241839,-610.73,0.00027397,7]
[357395551,1744042241849,-844.35,0.00027397,7]
[357395552,1744042241859,-500.0,0.00027397,7]
[357395553,1744042241869,-500.0,0.00027397,7]
[357395554,1744042241879,-500.0,0.00027397,7]
[357395555,1744042241889,-1722.26,0.00027397,7]
[357395556,1744042241905,-500.0,0.00027397,7]
[357395557,1744042241919,-514.94987429,0.00027397,7]
[357395558,1744042241930,-531.30406411,0.00027397,7]
[357395559,1744042241940,-500.0,0.00027397,7]
[357395560,1744042241951,-640.24,0.00027397,7]
[357395561,1744042241961,-3693.08,0.00027397,2]
[357395562,1744042241971,-513.96,0.00027397,7]
[357395563,1744042241981,-500.0,0.00027397,7]
[357395564,1744042241992,-680.17,0.00027397,7]
[357395565,1744042242002,-1121.13,0.00027397,7]
[357395566,1744042242013,-500.0,0.00027397,7]
[357395567,1744042242022,-500.0,0.00027397,7]
[357395568,1744042242032,-961.48,0.00027397,7]
[357395569,1744042242042,-557.44343894,0.00027397,7]
[357395570,1744042242052,-500.0,0.00027397,7]
[357395571,1744042242062,-500.0,0.00027397,7]
[357395572,1744042242072,-737.14,0.00027397,7]
[357395573,1744042242082,-500.0,0.00027397,7]
[357395574,1744042242092,-500.0,0.00027397,7]
[357395575,1744042242102,-433.305448,0.00027397,7]
[357395576,1744042242111,-500.0,0.00027397,7]
[357395577,1744042242121,-500.0,0.00027397,7]
[357395578,1744042242132,-500.0,0.00027397,7]
[357395579,1744042242143,-500.0,0.00027397,7]
[357395580,1744042242152,-500.0,0.00027397,7]
[357395581,1744042242162,-433.305448,0.00027397,7]
[357395582,1744042242172,-500.0,0.00027397,7]
[357395583,1744042242183,-681.92,0.00027397,7]
[357395584,1744042242193,-253.7492173,0.00027397,7]
[357395585,1744042242203,-502.6390056,0.00027397,7]
[357395586,1744042242213,-500.0,0.00027397,7]
[357395587,1744042242223,-151.0,0.00027397,7]
[357395588,1744042242233,-500.0,0.00027397,7]
[357395589,1744042242243,-500.4540067,0.00027397,7]
[357395590,1744042242253,-500.0,0.00027397,7]
[357395591,1744042242263,-500.0,0.00027397,7]
[357395592,1744042242273,-500.0,0.00027397,7]
[357395593,1744042242283,-500.0,0.00027397,7]
[357395594,1744042242293,-874.6,0.00027397,7]
[357395595,1744042242304,-500.0,0.00027397,7]
[357395596,1744042242314,-500.0,0.00027397,7]
[357395597,1744042242324,-500.0,0.00027397,7]
[357395598,1744042242335,-500.0,0.00027397,7]
[357395599,1744042242346,-500.0,0.00027397,7]
[357395600,1744042242356,-500.0,0.00027397,7]
[357395601,1744042242366,-500.0,0.00027397,7]
[357395602,1744042242376,-579.68,0.00027397,7]
[357395603,1744042242387,-500.0,0.00027397,7]
[357395604,1744042242400,-568.8,0.00027397,7]
[357395605,1744042242410,-532.10341727,0.00027397,7]
[357395606,1744042242421,-500.0,0.00027397,7]
[357395607,1744042242430,-500.0,0.00027397,7]
[357395608,1744042242440,-500.0,0.00027397,2]
[357395609,1744042242450,-500.0,0.00027397,7]
[357395610,1744042242460,-237.04056397,0.00027397,7]
[357395611,1744042242470,-500.0,0.00027397,7]
[357395613,1744042242480,-621.02,0.00027397,7]
[357395614,1744042242489,-1198.39,0.00027397,7]
[357395615,1744042242498,-544.22,0.00027397,7]
[357395616,1744042242508,-500.0,0.00027397,7]
[357395617,1744042242518,-151.0,0.00027397,7]
[357395618,1744042242528,-1000.0,0.00027397,7]
[357395619,1744042242538,-500.0,0.00027397,7]
[357395620,1744042242548,-500.0,0.00027397,7]
[357395621,1744042242558,-515.5547907,0.00027397,7]
[357395622,1744042242568,-500.0,0.00027397,7]
[357395623,1744042242578,-500.0,0.00027397,7]
[357395624,1744042242588,-500.0,0.00027397,7]
[357395625,1744042242598,-500.0,0.00027397,7]
[357395626,1744042242608,-563.57577433,0.00027397,7]
[357395627,1744042242618,-242.28206233,0.00027397,7]
[357395628,1744042242627,-500.0,0.00027397,7]
[357395629,1744042242637,-500.0,0.00027397,7]
[357395630,1744042242652,-500.0,0.00027397,7]
[357395631,1744042242662,-500.0,0.00027397,7]
[357395632,1744042242672,-567.3040018,0.00027397,7]
[357395633,1744042242682,-193.97919986,0.00027397,7]
[357395635,1744042242692,-500.0,0.00027397,7]
[357395636,1744042242702,-500.0,0.00027397,7]
[357395637,1744042242712,-1219.18,0.00027397,7]
[357395638,1744042242721,-500.0,0.00027397,7]
[357395639,1744042242731,-481.53185672,0.00027397,7]
[357395640,1744042242742,-273.27,0.00027397,7]
[357395641,1744042242751,-646.08,0.00027397,7]
[357395642,1744042242762,-886.44,0.00027397,7]
[357395643,1744042242772,-500.0,0.00027397,7]
[357395644,1744042242782,-335.1946734,0.00027397,7]
[357395645,1744042242791,-890.39,0.00027397,7]
[357395646,1744042242801,-200.0,0.00027397,7]
[357395647,1744042242811,-500.0,0.00027397,7]
[357395648,1744042242821,-500.0,0.00027397,7]
[357395649,1744042242831,-500.0,0.00027397,7]